fUST/lending_fUST_20240707
["ID","MTS","AMOUNT","RATE_DAILY","PERIOD"]
[331408596,1720348269521,-1048.51,0.00047945,120]
[331408597,1720348269532,-2474.14,0.00047945,120]
[331408598,1720348269542,-587.02,0.00047945,120]
[331408599,1720348269552,-500.0,0.00047945,120]
[331408600,1720348269564,-3741.22,0.00047945,120]
[331408601,1720348269574,-531.11,0.00047945,120]
[331408602,1720348269584,-780.81,0.00047945,120]
[331408603,1720348269593,-2000.34,0.00047945,120]
[331408604,1720348269603,-500.0,0.00047945,120]
[331408605,1720348269612,-19236.53,0.00047945,120]
[331408606,1720348269622,-3413.69,0.00047945,120]
[331408607,1720348269632,-500.0,0.00047945,120]
[331408608,1720348269642,-1250.27,0.00047945,120]
[331408609,1720348269651,-1121.56,0.00047945,120]
[331408610,1720348269662,-500.0,0.00047945,120]
[331408611,1720348269672,-734.73,0.00047945,120]
[331408612,1720348269682,-1092.13,0.00047945,120]
[331408613,1720348269691,-1828.14,0.00047945,120]
[331408614,1720348269701,-2409.9,0.00047945,120]
[331408615,1720348269712,-1905.14,0.00047945,120]
[331408616,1720348269722,-882.47,0.00047945,120]
[331408617,1720348269732,-2825.71,0.00047945,120]
[331408618,1720348269741,-500.0,0.00047945,120]
[331408619,1720348269751,-639.95,0.00047945,120]
[331408620,1720348269761,-1266.29,0.00047945,120]
[331408621,1720348269771,-626.78,0.00047945,120]
[331408622,1720348269780,-500.0,0.00047945,120]
[331408623,1720348269790,-943.8,0.00047945,120]
[331408624,1720348269800,-1281.3,0.00047945,120]
[331408625,1720348269809,-2629.96,0.00047945,120]
[331408626,1720348269819,-749.98,0.00047945,120]
[331408627,1720348269829,-500.0,0.00047945,120]
[331408628,1720348269839,-686.76,0.00047945,120]
[331408629,1720348269850,-1167.5,0.00047945,120]
[331408630,1720348269860,-818.05,0.00047945,120]
[331408631,1720348269870,-718.68,0.00047945,120]
[331408632,1720348269880,-2844.1,0.00047945,120]
[331408633,1720348269890,-500.0,0.00047945,21]
[331408634,1720348269900,-500.0,0.00047945,120]
[331408635,1720348269910,-500.0,0.00047945,120]
[331408636,1720348269920,-23870.39,0.00047945,120]
[331408637,1720348269930,-730.55,0.00047945,120]
[331408638,1720348269940,-151.0,0.00047945,14]
[331408639,1720348269950,-6366.89,0.00047945,120]
[331408640,1720348269960,-151.0,0.00047945,14]
[331408641,1720348269971,-151.0,0.00047945,14]
[331408642,1720348269980,-151.0,0.00047945,14]
[331408643,1720348269990,-157.916529,0.00047945,14]
[331408644,1720348270000,-151.0,0.00047945,14]
[331408645,1720348270010,-10000.0,0.00048,48]
[331408646,1720348270020,-500.0,0.00048,120]
[331408647,1720348270029,-151.0,0.00048,14]
[331408648,1720348270039,-1637.17905575,0.00048082,30]
[331408649,1720348270048,-151.0,0.00048082,120]
[331408650,1720348270058,-3104.26073298,0.00048126,30]
[331408651,1720348270067,-452.8565937,0.00048159,30]
[331408652,1720348270077,-452.8565937,0.00048201,30]
[331408653,1720348270086,-539.93,0.00048219,120]
[331408654,1720348270096,-863.71,0.00048219,120]
[331408655,1720348270105,-758.3,0.00048219,120]
[331408656,1720348270116,-2277.09,0.00048219,120]
[331408657,1720348270125,-500.0,0.00048219,120]
[331408658,1720348270134,-3622.16,0.00048219,120]
[331408659,1720348270144,-500.0,0.00048219,120]
[331408660,1720348270153,-4420.68,0.00048219,120]
[331408661,1720348270164,-2729.24,0.00048219,120]
[331408662,1720348270180,-1418.25,0.00048219,120]
[331408663,1720348270190,-2088.03,0.00048219,120]
[331408664,1720348270200,-28020.05,0.00048219,120]
[331408665,1720348270210,-16482.27,0.00048219,120]
[331408666,1720348270222,-1928.91,0.00048219,120]
[331408667,1720348270232,-500.0,0.00048219,120]
[331408668,1720348270242,-1391.73,0.00048219,120]
[331408669,1720348270251,-980.42,0.00048219,120]
[331408670,1720348270261,-717.05,0.00048219,60]
[331408671,1720348270271,-500.0,0.00048219,120]
[331408672,1720348270280,-1100.84,0.00048219,120]
[331408673,1720348270290,-1322.06,0.00048219,120]
[331408674,1720348270299,-544.99,0.00048219,120]
[331408675,1720348270309,-1098.97,0.00048219,120]
[331408676,1720348270318,-1343.21,0.00048219,120]
[331408677,1720348270328,-500.0,0.00048219,120]
[331408678,1720348270337,-500.0,0.00048219,120]
[331408679,1720348270347,-933.38,0.00048219,120]
[331408680,1720348270356,-500.0,0.00048219,120]
[331408681,1720348270366,-1587.98,0.00048219,120]
[331408682,1720348270375,-645.75,0.00048219,120]
[331408683,1720348270385,-1804.61,0.00048219,120]
[331408684,1720348270394,-1400.55,0.00048219,120]
[331408685,1720348270404,-764.78,0.00048219,120]
[331408686,1720348270413,-638.28,0.00048219,120]
[331408687,1720348270561,-500.0,0.00048219,120]
[331408688,1720348270571,-993.07,0.00048219,120]
[331408689,1720348270581,-1084.46,0.00048219,120]
[331408690,1720348270591,-2280.31,0.00048219,120]
[331408691,1720348270601,-1460.56,0.00048219,120]
[331408692,1720348270611,-879.0,0.00048219,120]
[331408693,1720348270621,-500.0,0.00048219,120]
[331408694,1720348270630,-506.68,0.00048219,120]
[331408695,1720348270639,-1174.74,0.00048219,120]
[331408696,1720348270649,-547.7,0.00048219,120]
[331408697,1720348270658,-1275.26,0.00048219,120]
[331408698,1720348270667,-2777.24,0.00048219,120]
[331408699,1720348270677,-1229.15,0.00048219,120]
[331408700,1720348270686,-1466.22,0.00048219,120]
[331408701,1720348270696,-1166.72,0.00048219,120]
[331408702,1720348270705,-1741.41,0.00048219,120]
[331408703,1720348270716,-529.53,0.00048219,120]
[331408704,1720348270725,-500.0,0.00048219,120]
[331408705,1720348270735,-620.32,0.00048219,120]
[331408706,1720348270745,-500.0,0.00048219,120]
[331408707,1720348270754,-500.0,0.00048219,120]
[331408708,1720348270764,-1189.37,0.00048219,120]
[331408709,1720348270773,-500.0,0.00048219,120]
[331408710,1720348270783,-844.82,0.00048219,120]
[331408711,1720348270793,-731.34,0.00048219,120]
[331408712,1720348270802,-1170.99,0.00048219,120]
[331408713,1720348270812,-990.62,0.00048219,120]
[331408714,1720348270822,-760.13,0.00048219,120]
[331408715,1720348270831,-1274.08,0.00048219,120]
[331408716,1720348270841,-806.21,0.00048219,120]
[331408717,1720348270850,-834.54,0.00048219,120]
[331408718,1720348270859,-500.0,0.00048219,120]
[331408719,1720348270869,-886.97,0.00048219,120]
[331408720,1720348270879,-19633.38,0.00048219,120]
[331408721,1720348270888,-500.0,0.00048219,120]
[331408722,1720348270898,-522.91349095,0.00048219,120]
[331408723,1720348270907,-868.77,0.00048219,120]
[331408724,1720348270917,-1022.9,0.00048219,120]
[331408725,1720348270927,-997.77,0.00048219,120]
[331408726,1720348270937,-555.67,0.00048219,120]
[331408727,1720348270948,-764.61,0.00048219,120]
[331408728,1720348270959,-615.6504849,0.00048219,120]
[331408729,1720348270970,-500.0,0.00048219,120]
[331408730,1720348270983,-515.08,0.00048219,120]
[331408731,1720348270993,-1472.32,0.00048219,7]
[331408732,1720348271004,-539.31,0.00048219,120]
[331408733,1720348271014,-529.59,0.00048219,120]
[331408734,1720348271025,-2352.27,0.00048219,120]
[331408735,1720348271035,-777.74,0.00048219,120]
[331408736,1720348271047,-500.0,0.00048219,120]
[331408737,1720348271057,-671.8,0.00048219,120]
[331408738,1720348271067,-2174.43,0.00048219,120]
[331408739,1720348271077,-1875.52,0.00048219,120]
[331408740,1720348271087,-1180.04,0.00048219,120]
[331408741,1720348271097,-500.6,0.00048219,120]
[331408742,1720348271107,-500.0,0.00048219,120]
[331408743,1720348271117,-1990.29,0.00048219,120]
[331408744,1720348271127,-500.0,0.00048219,120]
[331408745,1720348271137,-6995.33,0.00048219,120]
[331408746,1720348271146,-1014.07,0.00048219,120]
[331408747,1720348271156,-693.64,0.00048219,120]
[331408748,1720348271165,-67758.47,0.00048219,120]
[331408749,1720348271177,-1365.67,0.00048219,120]
[331408750,1720348271187,-627.2,0.00048219,120]
[331408751,1720348271196,-780.73,0.00048219,120]
[331408752,1720348271206,-800.11,0.00048219,120]
[331408753,1720348271217,-1034.58,0.00048219,120]
[331408754,1720348271226,-1285.7,0.00048219,120]
[331408755,1720348271235,-508.27,0.00048219,120]
[331408756,1720348271244,-2445.93,0.00048219,120]
[331408757,1720348271255,-4266.09,0.00048219,120]
[331408758,1720348271265,-4429.83,0.00048219,120]
[331408759,1720348271274,-2704.38,0.00048219,120]
[331408760,1720348271284,-748.13,0.00048219,120]
[331408761,1720348271294,-1541.47,0.00048219,120]
[331408762,1720348271303,-924.03,0.00048219,120]
[331408763,1720348271313,-500.0,0.00048219,120]
[331408764,1720348271323,-844.26,0.00048219,120]
[331408765,1720348271333,-12793.66,0.00048219,120]
[331408766,1720348271343,-618.83,0.00048219,120]
[331408767,1720348271352,-896.63,0.00048219,120]
[331408768,1720348271362,-7734.13,0.00048219,21]
[331408769,1720348271371,-6948.55,0.00048219,120]
[331408770,1720348271380,-2118.44,0.00048219,120]
[331408771,1720348271391,-1280.73,0.00048219,120]
[331408772,1720348271401,-11105.94,0.00048219,120]
[331408773,1720348271411,-984.09,0.00048219,120]
[331408774,1720348271421,-555.51485089,0.00048219,120]
[331408775,1720348271430,-772.24,0.00048219,120]
[331408776,1720348271440,-6036.83,0.00048219,120]
[331408777,1720348271450,-15042.94,0.00048219,120]
[331408778,1720348271460,-887.89,0.00048219,120]
[331408779,1720348271476,-1240.73,0.00048219,120]
[331408780,1720348271486,-628.75149285,0.00048219,120]
[331408781,1720348271495,-2113.87,0.00048219,120]
[331408782,1720348271505,-688.3,0.00048219,120]
[331408783,1720348271515,-600.4,0.00048219,120]
[331408784,1720348271524,-4477.61,0.00048219,120]
[331408785,1720348271534,-1561.9,0.00048219,120]
[331408786,1720348271544,-5599.32,0.00048219,120]
[331408787,1720348271554,-626.43,0.00048219,120]
[331408788,1720348271566,-2966.16,0.00048219,120]
[331408789,1720348271576,-757.52,0.00048219,120]
[331408790,1720348271586,-1087.62,0.00048219,120]
[331408791,1720348271595,-667.57,0.00048219,120]
[331408792,1720348271605,-841.97,0.00048219,120]
[331408793,1720348271614,-1485.95,0.00048219,120]
[331408794,1720348271624,-500.0,0.00048219,120]
[331408795,1720348271634,-7224.58,0.00048219,120]
[331408796,1720348271643,-2906.61,0.00048219,120]
[331408797,1720348271653,-778.38,0.00048219,120]
[331408798,1720348271663,-641.22,0.00048219,120]
[331408799,1720348271672,-677.83,0.00048219,120]
[331408800,1720348271682,-950.32,0.00048219,120]
[331408801,1720348271691,-679.83,0.00048219,120]
[331408802,1720348271701,-791.08,0.00048219,120]
[331408803,1720348271711,-500.0,0.00048219,120]
[331408804,1720348271723,-841.38,0.00048219,120]
[331408805,1720348271733,-681.62,0.00048219,120]
[331408806,1720348271743,-500.0,0.00048219,120]
[331408807,1720348271752,-500.0,0.00048219,120]
[331408808,1720348271762,-1478.86,0.00048219,120]
[331408809,1720348271772,-9165.57,0.00048219,120]
[331408810,1720348271781,-500.0,0.00048219,120]
[331408811,1720348271791,-500.0,0.00048219,120]
[331408812,1720348271800,-500.0,0.00048219,120]
[331408813,1720348271810,-2498.75,0.00048219,120]
[331408814,1720348271819,-1179.34,0.00048219,120]
[331408815,1720348271828,-1048.51,0.00048219,120]
[331408816,1720348271837,-2474.14,0.00048219,120]
[331408817,1720348271847,-587.02,0.00048219,120]
[331408818,1720348271856,-500.0,0.00048219,120]
[331408819,1720348271866,-3741.22,0.00048219,120]
[331408820,1720348271875,-531.11,0.00048219,120]
[331408821,1720348271884,-780.81,0.00048219,120]
[331408822,1720348271894,-2000.34,0.00048219,120]
[331408823,1720348271904,-500.0,0.00048219,120]
[331408824,1720348271913,-19236.53,0.00048219,120]
[331408825,1720348271923,-3413.69,0.00048219,120]
[331408826,1720348271932,-570.45,0.00048219,120]
[331408827,1720348271942,-1250.27,0.00048219,120]
[331408828,1720348271951,-1121.56,0.00048219,120]
[331408829,1720348271961,-500.0,0.00048219,120]
[331408830,1720348271973,-734.73,0.00048219,120]
[331408831,1720348271982,-1092.13,0.00048219,120]
[331408832,1720348271992,-1828.14,0.00048219,120]
[331408833,1720348272001,-2409.9,0.00048219,120]
[331408834,1720348272012,-1905.14,0.00048219,120]
[331408835,1720348272021,-882.47,0.00048219,120]
[331408836,1720348272030,-2825.71,0.00048219,120]
[331408837,1720348272039,-500.0,0.00048219,120]
[331408838,1720348272049,-639.95,0.00048219,120]
[331408839,1720348272058,-1266.29,0.00048219,120]
[331408840,1720348272067,-626.78,0.00048219,120]
[331408841,1720348272077,-500.0,0.00048219,120]
[331408842,1720348272086,-943.8,0.00048219,120]
[331408843,1720348272095,-1281.3,0.00048219,120]
[331408844,1720348272104,-2629.96,0.00048219,120]
[331408845,1720348272114,-749.98,0.00048219,120]
[331408846,1720348272123,-500.0,0.00048219,120]
[331408847,1720348272133,-686.76,0.00048219,120]
[331408848,1720348272143,-1167.5,0.00048219,120]
[331408849,1720348272152,-818.05,0.00048219,120]
[331408850,1720348272161,-718.68,0.00048219,120]
[331408851,1720348272173,-2844.1,0.00048219,120]
[331408852,1720348272184,-500.0,0.00048219,21]
[331408853,1720348272194,-500.0,0.00048219,120]
[331408854,1720348272203,-458.46,0.00048219,120]
[331408855,1720348272216,-23870.39,0.00048219,120]
[331408856,1720348272226,-730.55,0.00048219,120]
[331408857,1720348272235,-151.0,0.00048219,14]
[331408858,1720348272246,-174.981048,0.00048219,14]
[331408859,1720348272258,-151.0,0.00048219,14]
[331408860,1720348272268,-3104.26073298,0.00048322,30]
[331408861,1720348272277,-395.03155936,0.00048328,30]
[331408862,1720348272287,-1637.17905575,0.00048378,30]
[331408863,1720348272296,-1637.17905575,0.0004839,30]
[331408864,1720348272305,-154.76146562,0.00048431,72]
[331408865,1720348272315,-539.93,0.00048493,120]
[331408866,1720348272324,-863.71,0.00048493,120]
[331408867,1720348272333,-758.3,0.00048493,120]
[331408868,1720348272343,-2277.09,0.00048493,120]
[331408869,1720348272352,-500.0,0.00048493,120]
[331408870,1720348272362,-3622.16,0.00048493,120]
[331408871,1720348272372,-176.04573072,0.00048493,120]
[331408872,1720348272381,-4420.68,0.00048493,120]
[331408873,1720348272391,-2729.24,0.00048493,120]
[331408874,1720348272401,-1418.25,0.00048493,120]
[331408875,1720348272411,-2088.03,0.00048493,120]
[331408876,1720348272420,-28020.05,0.00048493,120]
[331408877,1720348272430,-16482.27,0.00048493,120]
[331408878,1720348272439,-1928.91,0.00048493,120]
[331408879,1720348272448,-500.0,0.00048493,120]
[331408880,1720348272458,-1391.73,0.00048493,120]
[331408881,1720348272469,-980.42,0.00048493,120]
[331408882,1720348272479,-717.05,0.00048493,60]
[331408883,1720348272488,-500.0,0.00048493,120]
[331408884,1720348272498,-1100.84,0.00048493,120]
[331408885,1720348272507,-1322.06,0.00048493,120]
[331408886,1720348272516,-544.99,0.00048493,120]
[331408887,1720348272526,-1098.97,0.00048493,120]
[331408888,1720348272535,-1343.21,0.00048493,120]
[331408889,1720348272546,-500.0,0.00048493,120]
[331408890,1720348272555,-500.0,0.00048493,120]
[331408891,1720348272566,-933.38,0.00048493,120]
[331408892,1720348272577,-1587.98,0.00048493,120]
[331408893,1720348272587,-645.75,0.00048493,120]
[331408894,1720348272597,-1804.61,0.00048493,120]
[331408895,1720348272607,-1400.55,0.00048493,120]
[331408896,1720348272616,-764.78,0.00048493,120]
[331408897,1720348272626,-638.28,0.00048493,120]
[331408898,1720348272636,-500.0,0.00048493,120]
[331408899,1720348272645,-993.07,0.00048493,120]
[331408900,1720348272654,-1084.46,0.00048493,120]
[331408901,1720348272664,-2280.31,0.00048493,120]
[331408902,1720348272675,-1460.56,0.00048493,120]
[331408903,1720348272685,-879.0,0.00048493,120]
[331408904,1720348272694,-500.0,0.00048493,120]
[331408905,1720348272704,-1174.74,0.00048493,120]
[331408906,1720348272717,-547.7,0.00048493,120]
[331408907,1720348272727,-506.68,0.00048493,120]
[331408908,1720348272736,-1275.26,0.00048493,120]
[331408909,1720348272746,-2777.24,0.00048493,120]
[331408910,1720348272755,-1229.15,0.00048493,120]
[331408911,1720348272765,-1466.22,0.00048493,120]
[331408912,1720348272775,-1166.72,0.00048493,120]
[331408913,1720348272785,-1741.41,0.00048493,120]
[331408914,1720348272795,-529.53,0.00048493,120]
[331408915,1720348272804,-500.0,0.00048493,120]
[331408916,1720348272814,-177.79267631,0.00048493,120]
[331408917,1720348272823,-500.0,0.00048493,120]
[331408918,1720348272833,-1189.37,0.00048493,120]
[331408919,1720348272843,-500.0,0.00048493,120]
[331408920,1720348272854,-844.82,0.00048493,120]
[331408921,1720348272863,-731.34,0.00048493,120]
[331408922,1720348272873,-1170.99,0.00048493,120]
[331408923,1720348272883,-760.13,0.00048493,120]
[331408924,1720348272893,-1274.08,0.00048493,120]
[331408925,1720348272902,-806.21,0.00048493,120]
[331408926,1720348272912,-990.62,0.00048493,120]
[331408927,1720348272921,-834.54,0.00048493,120]
[331408928,1720348272931,-886.97,0.00048493,120]
[331408929,1720348272941,-19633.38,0.00048493,120]
[331408930,1720348272950,-500.0,0.00048493,120]
[331408931,1720348272961,-1022.9,0.00048493,120]
[331408932,1720348272973,-457.06016027,0.00048493,120]
[331408933,1720348272983,-997.77,0.00048493,120]
[331408934,1720348272992,-555.67,0.00048493,120]
[331408935,1720348273002,-764.61,0.00048493,120]
[331408936,1720348273011,-500.0,0.00048493,120]
[331408937,1720348273021,-515.08,0.00048493,120]
[331408938,1720348273030,-1472.32,0.00048493,7]
[331408939,1720348273077,-539.31,0.00048493,120]
[331408940,1720348273087,-529.59,0.00048493,120]
[331408941,1720348273096,-2352.27,0.00048493,120]
[331408942,1720348273107,-777.74,0.00048493,120]
[331408943,1720348273116,-500.0,0.00048493,120]
[331408944,1720348273126,-671.8,0.00048493,120]
[331408945,1720348273136,-2174.43,0.00048493,120]
[331408946,1720348273146,-1875.52,0.00048493,120]
[331408947,1720348273163,-1180.04,0.00048493,120]
[331408948,1720348273178,-500.6,0.00048493,120]
[331408949,1720348273187,-500.0,0.00048493,120]
[331408950,1720348273197,-1990.29,0.00048493,120]
[331408951,1720348273206,-484.22873128,0.00048493,120]
[331408952,1720348273220,-6995.33,0.00048493,120]
[331408953,1720348273229,-1014.07,0.00048493,120]
[331408954,1720348273238,-693.64,0.00048493,120]
[331408955,1720348273247,-67758.47,0.00048493,120]
[331408956,1720348273257,-1365.67,0.00048493,120]
[331408957,1720348273267,-627.2,0.00048493,120]
[331408958,1720348273276,-780.73,0.00048493,120]
[331408959,1720348273285,-800.11,0.00048493,120]
[331408960,1720348273295,-1034.58,0.00048493,120]
[331408961,1720348273303,-1285.7,0.00048493,120]
[331408962,1720348273313,-508.27,0.00048493,120]
[331408963,1720348273322,-2445.93,0.00048493,120]
[331408964,1720348273331,-4266.09,0.00048493,120]
[331408965,1720348273341,-4429.83,0.00048493,120]
[331408966,1720348273351,-2704.38,0.00048493,120]
[331408967,1720348273360,-1541.47,0.00048493,120]
[331408968,1720348273369,-924.03,0.00048493,120]
[331408969,1720348273379,-500.0,0.00048493,120]
[331408970,1720348273390,-844.26,0.00048493,120]
[331408971,1720348273400,-12793.66,0.00048493,120]
[331408972,1720348273411,-748.13,0.00048493,120]
[331408973,1720348273421,-618.83,0.00048493,120]
[331408974,1720348273430,-896.63,0.00048493,120]
[331408975,1720348273440,-7734.13,0.00048493,21]
[331408976,1720348273449,-6948.55,0.00048493,120]
[331408977,1720348273458,-2118.44,0.00048493,120]
[331408978,1720348273469,-1280.73,0.00048493,120]
[331408979,1720348273479,-11105.94,0.00048493,120]
[331408980,1720348273489,-984.09,0.00048493,120]
[331408981,1720348273498,-772.24,0.00048493,120]
[331408982,1720348273508,-6036.83,0.00048493,120]
[331408983,1720348273518,-15042.94,0.00048493,120]
[331408984,1720348273528,-887.89,0.00048493,120]
[331408985,1720348273538,-2113.87,0.00048493,120]
[331408986,1720348273547,-688.3,0.00048493,120]
[331408987,1720348273557,-600.4,0.00048493,120]
[331408988,1720348273568,-4477.61,0.00048493,120]
[331408989,1720348273578,-1561.9,0.00048493,120]
[331408990,1720348273587,-5599.32,0.00048493,120]
[331408991,1720348273597,-1240.73,0.00048493,120]
[331408992,1720348273606,-626.43,0.00048493,120]
[331408993,1720348273615,-2966.16,0.00048493,120]
[331408994,1720348273625,-757.52,0.00048493,120]
[331408995,1720348273635,-1087.62,0.00048493,120]
[331408996,1720348273644,-667.57,0.00048493,120]
[331408997,1720348273654,-841.97,0.00048493,120]
[331408998,1720348273663,-1485.95,0.00048493,120]
[331408999,1720348273673,-458.17370168,0.00048493,120]
[331409000,1720348273682,-7224.58,0.00048493,120]
[331409001,1720348273692,-2906.61,0.00048493,120]
[331409002,1720348273701,-778.38,0.00048493,120]
[331409003,1720348273711,-641.22,0.00048493,120]
[331409004,1720348273722,-677.83,0.00048493,120]
[331409005,1720348273731,-950.32,0.00048493,120]
[331409006,1720348273740,-679.83,0.00048493,120]
[331409007,1720348273750,-791.08,0.00048493,120]
[331409008,1720348273759,-212.55491834,0.00048493,120]
[331409009,1720348273769,-841.38,0.00048493,120]
[331409010,1720348273779,-681.62,0.00048493,120]
[331409011,1720348273788,-500.0,0.00048493,120]
[331409012,1720348273797,-500.0,0.00048493,120]
[331409013,1720348273806,-1478.86,0.00048493,120]
[331409014,1720348273816,-9165.57,0.00048493,120]
[331409015,1720348273827,-613.83149117,0.00048493,120]
[331409016,1720348273837,-500.0,0.00048493,120]
[331409017,1720348273847,-500.0,0.00048493,120]
[331409018,1720348273855,-2498.75,0.00048493,120]
[331409019,1720348273866,-1179.34,0.00048493,120]
[331409020,1720348273877,-1048.51,0.00048493,120]
[331409021,1720348273887,-2474.14,0.00048493,120]
[331409022,1720348273896,-587.02,0.00048493,120]
[331409023,1720348273906,-500.0,0.00048493,120]
[331409024,1720348273915,-3741.22,0.00048493,120]
[331409025,1720348273925,-531.11,0.00048493,120]
[331409026,1720348273934,-2000.34,0.00048493,120]
[331409027,1720348273944,-780.81,0.00048493,120]
[331409028,1720348273953,-306.50633629,0.00048493,120]
[331409029,1720348273963,-19236.53,0.00048493,120]
[331409030,1720348273975,-3413.69,0.00048493,120]
[331409031,1720348273985,-1250.27,0.00048493,120]
[331409032,1720348273994,-1121.56,0.00048493,120]
[331409033,1720348274008,-255.17054608,0.00048493,120]
[331409034,1720348274019,-734.73,0.00048493,120]
[331409035,1720348274028,-1092.13,0.00048493,120]
[331409036,1720348274038,-1828.14,0.00048493,120]
[331409037,1720348274047,-2409.9,0.00048493,120]
[331409038,1720348274056,-882.47,0.00048493,120]
[331409039,1720348274066,-2825.71,0.00048493,120]
[331409040,1720348274075,-424.45484843,0.00048493,120]
[331409041,1720348274086,-639.95,0.00048493,120]
[331409042,1720348274096,-1266.29,0.00048493,120]
[331409043,1720348274106,-626.78,0.00048493,120]
[331409044,1720348274116,-500.0,0.00048493,120]
[331409045,1720348274126,-943.8,0.00048493,120]
[331409046,1720348274136,-1281.3,0.00048493,120]
[331409047,1720348274145,-2629.96,0.00048493,120]
[331409048,1720348274155,-749.98,0.00048493,120]
[331409049,1720348274166,-500.0,0.00048493,120]
[331409050,1720348274180,-686.76,0.00048493,120]
[331409051,1720348274190,-1167.5,0.00048493,120]
[331409052,1720348274200,-818.05,0.00048493,120]
[331409053,1720348274211,-718.68,0.00048493,120]
[331409054,1720348274223,-2844.1,0.00048493,120]
[331409055,1720348274233,-500.0,0.00048493,21]
[331409056,1720348274243,-500.0,0.00048493,120]
[331409057,1720348274254,-23870.39,0.00048493,120]
[331409058,1720348274264,-730.55,0.00048493,120]
[331409059,1720348274273,-286.556492,0.00048493,14]
[331409060,1720348274283,-151.0,0.00048493,14]
[331409061,1720348274292,-151.0,0.00048493,14]
[331409062,1720348274303,-151.0,0.00048493,14]
[331409063,1720348274312,-452.8565937,0.00048597,30]
[331409064,1720348274322,-452.8565937,0.00048621,30]
[331409065,1720348274331,-6366.89,0.0004863,120]
[331409066,1720348274340,-153.3853545,0.0004863,30]
[331409067,1720348274350,-155.49,0.000487,45]
[331409068,1720348274360,-3104.26073298,0.00048761,30]
[331409069,1720348274370,-539.93,0.00048767,120]
[331409070,1720348274379,-863.71,0.00048767,120]
[331409071,1720348274389,-758.3,0.00048767,120]
[331409072,1720348274399,-2277.09,0.00048767,120]
[331409073,1720348274408,-500.0,0.00048767,120]
[331409074,1720348274418,-3622.16,0.00048767,120]
[331409075,1720348274427,-4420.68,0.00048767,120]
[331409076,1720348274436,-2729.24,0.00048767,120]
[331409077,1720348274446,-1418.25,0.00048767,120]
[331409078,1720348274455,-2088.03,0.00048767,120]
[331409079,1720348274466,-28020.05,0.00048767,120]
[331409080,1720348274476,-16482.27,0.00048767,120]
[331409081,1720348274485,-1928.91,0.00048767,120]
[331409082,1720348274494,-500.0,0.00048767,120]
[331409083,1720348274504,-1391.73,0.00048767,120]
[331409084,1720348274513,-980.42,0.00048767,120]
[331409085,1720348274523,-717.05,0.00048767,60]
[331409086,1720348274532,-500.0,0.00048767,120]
[331409087,1720348274541,-1100.84,0.00048767,120]
[331409088,1720348274551,-1322.06,0.00048767,120]
[331409089,1720348274561,-544.99,0.00048767,120]
[331409090,1720348274572,-1098.97,0.00048767,120]
[331409091,1720348274581,-1343.21,0.00048767,120]
[331409092,1720348274591,-500.0,0.00048767,120]
[331409093,1720348274601,-1587.98,0.00048767,120]
[331409094,1720348274611,-645.75,0.00048767,120]
[331409095,1720348274622,-1804.61,0.00048767,120]